Cogmind - Beta 14 @@@ ROGUE MODE // 2025.03.09 @ 16:36:10 Player: GDW Result: Destroyed by Y-54 Guardian with Gatling Laser Performance ------------- Evolutions (3) 1500 Regions Visited (6) 1200 Robots Destroyed (111) 555 Value Destroyed (2647) 2647 Prototype IDs (2) 40 Alien Tech Used (0) 0 Bonus (-87) -87 TOTAL SCORE: 5855 Bonus ------- Follower Combat Kills 33 Friendly Fire -120 Cogmind --------- Core Integrity 0/700 Matter 228/300 Energy 100/100 System Corruption 5% Temperature Cool (27) Movement Core (100) Ox1 Location -7/Factory Parts ------- > --- POWER (1) -------- (None) > --- PROPULSION (4) --- (None) > --- UTILITY (4) ------ Seismic Detector Component Analysis Suite > --- WEAPON (4) ------- Faulty Enhanced Autogun > --- INVENTORY (5) ---- Nuclear Core Recalibrator Remote Datajack Peak State ------------ > --- POWER ------------ Nuclear Core > --- PROPULSION ------- Light Treads Light Treads Armored Treads Compact Wheel > --- UTILITY ---------- Medium Storage Unit Core Analyzer Kinecellerator Medium Reactive Plating > --- WEAPON ----------- Gatling Laser Enhanced Autogun Flak Cannon Gauss Cannon > --- INVENTORY -------- Nuclear Core Carbon-fiber Leg Seismic Detector Component Analysis Suite Recalibrator Enhanced Autogun Enhanced Autogun Precision Assault Rifle Remote Datajack [Rating: 40] Favorites ----------- Power Light Ion Engine Engine Light Ion Engine Power Core Nuclear Core Propulsion Light Treads Treads Light Treads Leg Aluminum Leg Wheel Compact Wheel Utility Large Storage Unit Device Seismic Detector Storage Large Storage Unit Processor Core Analyzer Protection Light Armor Plating Weapon Light Assault Rifle Energy Gun Gatling Laser Ballistic Gun Light Assault Rifle Ballistic Cannon Gauss Cannon Launcher Rocket Launcher Special Weapon Mining Laser Slashing Weapon Katana Build | -11 -10 -10 -9 -9 -8 -7 ------- Run | Yrd Mat Min Mat Min Mat Fac Slots Evolved 6 | . . . 2 . 2 2 Power . | . . . . . . . Propulsion 2 | . . . 1 . . 1 Utility 2 | . . . 1 . 1 . Weapon 2 | . . . . . 1 1 Parts Attached 131 | 7 22 8 20 13 27 34 Power 13 | 1 2 1 2 1 2 4 Engine 11 | 1 2 1 2 1 2 2 Core 2 | . . . . . . 2 Reactor . | . . . . . . . Propulsion 27 | 2 6 . 4 2 6 7 Treads 21 | 2 4 . 4 1 6 4 Leg 3 | . 2 . . . . 1 Wheel 3 | . . . . 1 . 2 Hover . | . . . . . . . Flight . | . . . . . . . Utility 42 | 2 5 5 3 2 11 14 Device 19 | 1 1 4 1 1 3 8 Storage 5 | 1 1 . . 1 . 2 Processor 2 | . 1 . . . . 1 Hackware . | . . . . . . . Protection 16 | . 2 1 2 . 8 3 Artifact . | . . . . . . . Weapon 49 | 2 9 2 11 8 8 9 Energy Gun 6 | . 4 . . . 1 1 Energy Cannon . | . . . . . . . Ballistic Gun 28 | 2 4 2 7 5 2 6 Ballistic Cannon 3 | . . . . . 1 2 Launcher 6 | . . . 1 3 2 . Special Weapon 4 | . 1 . 2 . 1 . Impact Weapon . | . . . . . . . Slashing Weapon 2 | . . . 1 . 1 . Piercing Weapon . | . . . . . . . Special Melee Weapon . | . . . . . . . Unidentified Prototypes 2 | . . . . . . 2 Parts Lost 69 | . 10 1 5 16 18 19 Power 5 | . 1 . . 2 . 2 Propulsion 23 | . 3 . 2 5 5 8 Utility 20 | . 2 1 1 3 10 3 Weapon 21 | . 4 . 2 6 3 6 Highest Loss Streak 10 | . 4 1 4 5 10 10 To Critical Strikes . | . . . . . . . Average Slot Usage (%) 86 | . 96 98 94 69 77 70 Engine 9 | . 13 14 11 6 8 1 Core 1 | . . . . . . 5 Treads 21 | . 23 28 29 14 14 17 Leg 1 | . 2 . . . . . Device 10 | . 5 10 12 8 18 12 Storage 9 | . 14 14 11 12 . 4 Processor 1 | . . . . . . 4 Protection 6 | . 8 1 8 6 13 2 Energy Gun 2 | . 3 . . . . 5 Ballistic Gun 16 | . 22 28 19 15 10 5 Ballistic Cannon 1 | . . . . . 1 4 Peak Build Rating 40 | 7 8 10 12 11 24 40 Average Rating 13 | 5 7 7 10 8 16 26 On Entrance 5 | . 7 8 8 11 3 1 Naked Turns . | . . . . . . . Heaviest Build 61 | 11 31 30 33 35 38 61 Greatest Support 60 | 40 40 40 60 60 60 60 Greatest Overweight (x) 8 | 1 2 . . 3 3 8 Average Overweight (x) . | . . . . . . . Largest Inventory Capacity 15 | 8 15 15 15 15 5 10 Average Capacity 11 | 7 14 15 15 13 5 7 Most Carried 15 | 3 15 15 15 14 5 9 Average Carried 8 | 2 11 14 14 10 2 4 Final Capacity 15 | 8 15 15 15 5 5 5 Final Carried 15 | 3 15 15 13 5 2 3 Class Distribution -------------------- 55% | Mutant 26% | Scavenger-Mutant 9% | Scavenger-Gunner 3% | Scavenger-Tank Dominant Class ---------------- Mutant | -10/Materials Scavenger-Mutant | -10/Mines Scavenger-Mutant | -9/Materials Mutant | -9/Mines Mutant | -8/Materials Mutant | -7/Factory Resources | -11 -10 -10 -9 -9 -8 -7 ----------- Run | Yrd Mat Min Mat Min Mat Fac Matter Collected 2484 | 313 474 143 330 54 524 646 Remotely . | . . . . . . . Salvage Created 3509 | 198 1006 225 420 141 634 885 Parts 233 | 24 61 18 21 13 52 44 Haulers Intercepted 2 | . 1 . . . . 1 Recyclers Shooed 7 | . 3 1 . . 2 1 Parts Field Recycled . | . . . . . . . Retrieved Matter . | . . . . . . . Parts Self-Destructed . | . . . . . . . Prevented . | . . . . . . . Kills | -11 -10 -10 -9 -9 -8 -7 ------- Run | Yrd Mat Min Mat Min Mat Fac Combat Hostiles Destroyed 78 | . 22 6 9 16 12 13 Melee 2 | . . . . . 1 1 Guns 57 | . 21 6 7 3 10 10 Cannons 2 | . . . 1 . . 1 AOE 16 | . . . 1 13 1 1 Classes Destroyed 16 | 2 6 . 2 1 1 4 Worker 9 | 1 . . . . 3 5 Builder 6 | . 1 . . . 2 3 Tunneler 13 | 9 1 1 . 1 1 . Hauler 2 | . 1 . . . . 1 Recycler 8 | . 1 1 . 1 1 4 Mechanic 1 | . . . . . . 1 Watcher 5 | . 3 . 1 . 1 . Swarmer 21 | . 6 6 . 4 3 2 Grunt 32 | . 16 . 5 . 6 5 Brawler 1 | . . . . . 1 . Duelist 1 | . . . 1 . . . Sentry 7 | . . . 3 . 3 1 Hunter 2 | . . . . . . 2 Programmer 2 | . . . . . . 2 Heavy 1 | . . . . . . 1 Assembled 12 | . . . . 12 . . Best Kill Streak 14 | 2 4 3 4 14 5 6 Combat Bots Only 12 | . 4 3 4 12 5 2 Max Kills in Single Turn 6 | 1 2 2 1 4 2 6 Gunslinging 1 | . 1 1 . . . . Exploded 3 | . . . 1 3 1 1 Melee 1 | . . . . . 1 1 Uniques/NPCs Destroyed . | . . . . . . . Combat | -11 -10 -10 -9 -9 -8 -7 -------- Run | Yrd Mat Min Mat Min Mat Fac Hostile Shots Fired 916 | . 155 37 69 70 210 375 Missed 233 | . 40 12 12 17 40 112 Damage Taken 9616 | . 1226 195 915 1333 2690 3257 Core 1807 | . 161 48 102 273 513 710 Absorbed by Shields . | . . . . . . . Redirected to Shielding 119 | . 52 . 50 17 . . Ignored by Resistances 168 | . . . . . . 168 Core Remaining (%) 32 | 100 . 16 . 6 6 . Volleys Fired 366 | 22 131 29 43 30 46 65 Largest 4 | 2 2 2 2 2 3 4 Hottest 197 | 40 80 40 120 53 120 197 Shots Fired 648 | 43 220 58 80 54 85 108 Gun 590 | 43 220 58 74 40 65 90 Cannon 35 | . . . . . 17 18 Launcher 17 | . . . 1 14 2 . Special 6 | . . . 5 . 1 . Kinetic 535 | 43 197 58 74 40 79 44 Thermal 83 | . 10 . 5 . 4 64 Explosive 17 | . . . 1 14 2 . Electromagnetic 13 | . 13 . . . . . Robot Hit Streak 16 | 16 14 3 7 5 8 12 Robot Miss Streak 7 | 1 4 4 2 7 5 6 Penetration Max . | . . . . . . . Secondary Targets 10 | . 3 2 1 . 4 . Max Gunslinging Chain 1 | . 1 1 1 . 1 . Shots Hit Robots 418 | 32 144 32 51 22 64 73 Core Hits 240 | 17 57 13 21 35 44 53 Critical Kills . | . . . . . . . Critical Parts Destroyed 1 | . . . . . 1 . Critical Strikes 3 | . . . . . 2 1 Burn 1 | . . . . . 1 . Destroy 1 | . . . . . 1 . Blast 1 | . . . . . . 1 Melee Attacks 9 | . . . 3 . 6 . Impact . | . . . . . . . Slashing 9 | . . . 3 . 6 . Piercing . | . . . . . . . Sneak Attacks 6 | . . . . . 6 . Combat Hostiles . | . . . . . . . Follow-up Attacks . | . . . . . . . Damage Inflicted 7479 | 272 1341 271 626 1093 1598 2278 Guns 4466 | 272 1302 271 532 143 718 1228 Cannons 556 | . . . . . 292 264 Explosions 1947 | . 39 . 70 950 167 721 Melee 387 | . . . . . 387 . Ramming 75 | . . . . . 10 65 Kinetic 3655 | 272 1065 271 532 143 945 427 Thermal 2015 | . 118 . 24 15 72 1786 Explosive 1172 | . . . 70 935 167 . Electromagnetic 158 | . 158 . . . . . Impact 17 | . . . . . 17 . Slashing 387 | . . . . . 387 . Piercing . | . . . . . . . Highest Corruption 14 | . . . . 14 . 5 Average Corruption 4 | . . . . 11 . 3 Corruption Purged . | . . . . . . . Corruption Blocked . | . . . . . . . Effects 24 | . . . . 6 . 18 Message Errors 3 | . . . . 1 . 2 Matter Fused 8 | . . . . 2 . 6 Heat Flow Errors 1 | . . . . 1 . . Energy Discharges 1 | . . . . . . 1 Parts Rejected 1 | . . . . . . 1 Data Loss (minor) 5 | . . . . . . 5 Data Loss (major) 1 | . . . . . . 1 Misfires 1 | . . . . . . 1 Alerts 1 | . . . . . . 1 Misdirections 1 | . . . . 1 . . Weapon Failures 1 | . . . . 1 . . Overload Shots . | . . . . . . . Overflow Damage 255 | . . . 9 43 51 152 Projectiles 32 | . . . . . . 32 Explosions 172 | . . . 9 43 . 120 Melee 51 | . . . . . 51 . Knockbacks 11 | . . . . . 7 4 Impact . | . . . . . . . Kinetic 10 | . . . . . 6 4 Secondary 1 | . . . . . 1 . Self-Inflicted Damage 390 | . 28 . 52 220 15 75 Shots 11 | . 1 . 1 7 1 1 Rammed 27 | . . . . . 6 21 Targets Rammed 30 | . . . . . 7 23 Kicked . | . . . . . . . Crushed 3 | . . . . . 1 2 Highest Temperature 679 | . 107 12 38 146 679 600 Average Temperature 122 | . 25 6 12 66 248 143 Received Heat Transfer 3129 | . 495 . 372 180 1314 768 Effects 39 | . . . . . 24 15 Shutdowns 6 | . . . . . 4 2 Energy Bleed 9 | . . . . . 4 5 Interference 7 | . . . . . 5 2 Matter Decay 5 | . . . . . 2 3 Short Circuit 3 | . . . . . 2 1 Damage (minor) 4 | . . . . . 3 1 Damage (major) 2 | . . . . . 2 . Damage (core) 3 | . . . . . 2 1 Siege Activations . | . . . . . . . Robots Corrupted 1 | . 1 . . . . . Combat Hostiles 1 | . 1 . . . . . Parts Fried 1 | . 1 . . . . . Impact Corruptions . | . . . . . . . Robots Melted . | . . . . . . . Combat Hostiles . | . . . . . . . Parts Melted 8 | . . . . . 3 5 Heat Transferred 3310 | . 175 . 50 50 235 2800 Parts Sabotaged . | . . . . . . . Parts Stolen . | . . . . . . . Parts Stripped . | . . . . . . . Power Chain Reactions 1 | . 1 . . . . . Alert | -11 -10 -10 -9 -9 -8 -7 ------- Run | Yrd Mat Min Mat Min Mat Fac Peak Influence 307 | 50 167 170 225 153 273 307 Initial 91 | . . 30 . 48 29 91 Average 89 | 25 60 44 61 118 114 160 Maximum Alert Level 1 | . . . 1 . 1 1 Low Security (%) 86 | 100 100 100 94 100 76 59 Level 1 13 | . . . 5 . 23 40 Level 2 . | . . . . . . . Level 3 . | . . . . . . . Level 4 . | . . . . . . . Level 5 . | . . . . . . . High Security . | . . . . . . . Max Security . | . . . . . . . Squads Dispatched 15 | . 6 . . . 2 7 Investigation 2 | . 2 . . . . . Extermination 3 | . . . . . . 3 Reinforcement 7 | . 4 . . . 1 2 Assault . | . . . . . . . Garrison 3 | . . . . . 1 2 Intercept . | . . . . . . . Searches Triggered . | . . . . . . . Construction Impeded 1 | . . . . . 1 . Haulers Reinforced . | . . . . . . . Active Scanning Responses . | . . . . . . . Cargo Convoy Interrupts . | . . . . . . . Stealth | -11 -10 -10 -9 -9 -8 -7 --------- Run | Yrd Mat Min Mat Min Mat Fac Distress Signals 5 | . 1 . 1 1 2 . Communications Jammed . | . . . . . . . Distress Signals . | . . . . . . . Times Spotted 123 | . 32 6 13 22 25 25 Peak Tracking Total 7 | . 4 3 7 6 6 6 Tactical Retreats 8 | . 2 . 1 1 3 1 Traps | -11 -10 -10 -9 -9 -8 -7 ------- Run | Yrd Mat Min Mat Min Mat Fac Traps Triggered 4 | . 2 . . . . 2 Indirectly . | . . . . . . . Trap Hack Attempts . | . . . . . . . Triggered . | . . . . . . . Disarmed . | . . . . . . . Reprogrammed . | . . . . . . . Reused . | . . . . . . . Traps Extracted . | . . . . . . . Installed . | . . . . . . . Triggered . | . . . . . . . Machines | -11 -10 -10 -9 -9 -8 -7 ---------- Run | Yrd Mat Min Mat Min Mat Fac Machines Disabled 18 | . . . 1 2 1 14 Max in Single Turn 14 | . . . 1 2 . 14 Machines Repaired . | . . . . . . . Machines Dismantled . | . . . . . . . Machines Sabotaged . | . . . . . . . Overloaded Fab Kills . | . . . . . . . Hacking | -11 -10 -10 -9 -9 -8 -7 --------- Run | Yrd Mat Min Mat Min Mat Fac Machines Accessed 6 | . 2 . 1 . . 3 Terminals 6 | . 2 . 1 . . 3 Fabricators . | . . . . . . . Repair Stations . | . . . . . . . Recycling Units . | . . . . . . . Scanalyzers . | . . . . . . . Garrison Access . | . . . . . . . Total Hacks 16 | . 7 . 2 . . 7 Successful 10 | . 5 . 1 . . 4 Failed 6 | . 2 . 1 . . 3 Catastrophic 2 | . 1 . 1 . . . Database Lockouts . | . . . . . . . Manual 9 | . 3 . 2 . . 4 Terminals 16 | . 7 . 2 . . 7 Fabricators . | . . . . . . . Repair Stations . | . . . . . . . Recycling Units . | . . . . . . . Scanalyzers . | . . . . . . . Garrison Access . | . . . . . . . Terminal Hacks 8 | . 5 . . . . 3 Record 2 | . 2 . . . . . Open DSF 1 | . . . . . . 1 Branch Access Points 1 | . 1 . . . . . Alert Level 1 | . . . . . . 1 Locate Traps 1 | . . . . . . 1 Hauler Manifests 1 | . 1 . . . . . Zone Layout 1 | . 1 . . . . . Fabricator Hacks . | . . . . . . . Repair Station Hacks . | . . . . . . . Recycling Unit Hacks . | . . . . . . . Scanalyzer . | . . . . . . . Garrison Access Hacks . | . . . . . . . Unauthorized Hacks 2 | . . . 1 . . 1 Terminals 2 | . . . 1 . . 1 Botnet 2 | . . . 1 . . 1 Fabricators . | . . . . . . . Repair Stations . | . . . . . . . Recycling Units . | . . . . . . . Scanalyzers . | . . . . . . . Garrison Access . | . . . . . . . Data Cores Recovered . | . . . . . . . Used . | . . . . . . . Hacking Detections 4 | . 1 . 1 . . 2 Full Trace Events . | . . . . . . . Feedback Events . | . . . . . . . Feedback Blocked . | . . . . . . . Robot Schematics Acquired . | . . . . . . . Robots Built . | . . . . . . . Authchips . | . . . . . . . Time . | . . . . . . . Total Robot Build Rating . | . . . . . . . Part Schematics Acquired . | . . . . . . . Parts Built . | . . . . . . . Authchips . | . . . . . . . Time . | . . . . . . . Total Part Build Rating . | . . . . . . . Parts Repaired . | . . . . . . . Time . | . . . . . . . Parts Recycled . | . . . . . . . Recycled Matter . | . . . . . . . Retrieved Matter . | . . . . . . . Retrieved Components . | . . . . . . . Parts Scanalyzed . | . . . . . . . Part Schematics Acquired . | . . . . . . . Parts Damaged . | . . . . . . . Bothacking | -11 -10 -10 -9 -9 -8 -7 ------------ Run | Yrd Mat Min Mat Min Mat Fac Used RIF Installer . | . . . . . . . Robots Hacked . | . . . . . . . Non-combat . | . . . . . . . Combat . | . . . . . . . Robot Hacks Applied . | . . . . . . . Relay Couplers Released . | . . . . . . . Fabnet Peak Effective % . | . . . . . . . Robots Rewired . | . . . . . . . Allies Hacked . | . . . . . . . Hacks Repelled . | . . . . . . . Allies | -11 -10 -10 -9 -9 -8 -7 -------- Run | Yrd Mat Min Mat Min Mat Fac Total Allies 3 | . . . . 3 . . Largest Group 3 | . . . . 3 3 . Highest-Rated Group 40 | . . . . 40 40 . Highest-Rated Ally 16 | . . . . 16 16 . Total Orders . | . . . . . . . Ally Attacks 26 | . . . . 2 24 . Total Damage 264 | . . . . 24 240 . Kills 3 | . . . . 2 1 . Allies Corrupted . | . . . . . . . Allies Melted . | . . . . . . . Intel | -11 -10 -10 -9 -9 -8 -7 ------- Run | Yrd Mat Min Mat Min Mat Fac Robot Analysis Total . | . . . . . . . Derelict Logs Recovered 2 | . . 1 . 1 . . Drone Launches . | . . . . . . . Drone Recoveries . | . . . . . . . Exploration | -11 -10 -10 -9 -9 -8 -7 ------------- Run | Yrd Mat Min Mat Min Mat Fac Turns Passed 6929 | 400 2120 962 653 271 748 1775 Spaces Moved 3041 | 210 884 492 270 146 316 723 Core 145 | 7 . . . 73 48 17 Treads 2667 | 203 807 492 270 64 268 563 Legs 84 | . 77 . . . . 7 Wheels 145 | . . . . 9 . 136 Hover . | . . . . . . . Flight . | . . . . . . . Fastest Speed 50 | 50 160 160 160 50 50 50 Average Speed 165 | 157 170 160 160 108 171 174 Slowest Speed 450 | 160 260 160 160 240 240 450 Overloaded Moves . | . . . . . . . Propulsion Burnouts . | . . . . . . . Robots Hopped . | . . . . . . . Cave-ins Triggered . | . . . . . . . Exploration Rate (%) 38 | 8 77 87 16 38 27 17 Regions Visited 6 Branch Regions 2 Pre-discovered Areas . | . . . . . . . Known Exits Taken 2 | . 1 . 1 . . . Unknown Exits Taken 4 | 1 . 1 . 1 1 . Scrap Searched 1 | . . 1 . . . . Spaces Dug 10 | . . . 6 . . 4 Terrain Destroyed 207 | . 3 . 12 131 14 47 Melee 3 | . . . 3 . . . Projectile 13 | . . . 3 . 3 7 AOE 191 | . 3 . 6 131 11 40 Terrain Rammed . | . . . . . . . Walls Destroyed . | . . . . . . . Machines Disabled . | . . . . . . . Actions | -11 -10 -10 -9 -9 -8 -7 --------- Run | Yrd Mat Min Mat Min Mat Fac Total 4312 | 243 1315 624 401 210 419 1100 Wait 631 | . 231 82 57 17 2 242 Move 3035 | 209 883 491 269 145 315 723 Hop . | . . . . . . . Pick Up 69 | 5 33 6 5 3 9 8 Fast Attach 33 | 5 1 . . . 11 16 Attach 51 | 2 10 1 7 10 13 8 Detach 4 | . 1 . . . 1 2 Swap 48 | . 11 7 13 3 3 11 Drop 36 | . 14 8 4 2 6 2 Fire 366 | 22 131 29 43 30 46 65 Melee 9 | . . . 3 . 6 . Ram 3 | . . . . . 2 1 Kick . | . . . . . . . Crush 27 | . . . . . 5 22 Escape Stasis . | . . . . . . . Rewire . | . . . . . . . Trap . | . . . . . . . Miscellaneous . | . . . . . . . Route ------- -11/Scrapyard -10/Materials (discovered 4 exits: *Mat x3 / *Min) -10/Mines (discovered 2 exits: *Mat x2) -9/Materials -9/Mines -8/Materials -7/Factory History --------- Turn | Location | Event 14 | -11/Scrapyard | Discovered new exit (range 16) 401 | -11/Scrapyard | Entered Materials 402 | -10/Materials | Build established: Mutant 706 | -10/Materials | Discovered new exit (range 4) 1200 | -10/Materials | Discovered new exit (range 5) 1215 | -10/Materials | Lost 3 parts (1p1u1w) 1451 | -10/Materials | Identified exit to Mines 1527 | -10/Materials | Lost 4 parts (1n1u2w) 2011 | -10/Materials | Build established: Scavenger-Mutant 2208 | -10/Materials | Discovered new exit (range 3) 2255 | -10/Materials | Core integrity fell below 50% 2521 | -10/Materials | Entered Mines 2551 | -10/Mines | Build established: Mutant 2666 | -10/Mines | Received a Rocket Launcher from a helpful Derelict 2688 | -10/Mines | Discovered new exit (range 10) 2896 | -10/Mines | Core integrity fell below 20% 3318 | -10/Mines | Build established: Scavenger-Mutant 3324 | -10/Mines | Learned 2 Materials zone layouts 3431 | -10/Mines | Discovered new exit (range 14) 3437 | -10/Mines | YI-UF0 nonchalantly dropped a Grenade Launcher on the ground 3483 | -10/Mines | Entered Materials 3483 | -9/Materials | Evolved 2 slots: Propulsion x1, Utility x1 3484 | -9/Materials | Identified exit to Mines 3916 | -9/Materials | Lost 4 parts (1n1u2w) 4136 | -9/Materials | Entered Mines 4203 | -9/Mines | Assembled infested the area 4280 | -9/Mines | Lost 5 parts (1p2n1u1w) 4289 | -9/Mines | Core integrity fell below 50% 4291 | -9/Mines | System corruption reached 10% 4321 | -9/Mines | Lost 4 parts (1n1u2w) 4334 | -9/Mines | Core integrity fell below 20% 4364 | -9/Mines | Learned Materials stockpile data 4364 | -9/Mines | Assisted by bots powering up and referring to "LRC-V3" 4372 | -9/Mines | Destroyed 12 combat bots 4379 | -9/Mines | Discovered new exit (range 13) 4384 | -9/Mines | Lost 5 parts (1p1n1u2w) 4407 | -9/Mines | Entered Materials 4407 | -8/Materials | Accompanied by 3 allies 4407 | -8/Materials | Evolved 2 slots: Utility x1, Weapon x1 4523 | -8/Materials | Build established: Mutant 4871 | -8/Materials | Garrison activated, responded to threat 4958 | -8/Materials | Lost 4 parts (1n3u) 5103 | -8/Materials | Lost 3 parts (1n1u1w) 5111 | -8/Materials | Core integrity fell below 50% 5133 | -8/Materials | Core integrity fell below 20% 5147 | -8/Materials | Discovered new exit (range 14) 5155 | -8/Materials | Entered Factory 5155 | -7/Factory | Evolved 2 slots: Propulsion x1, Weapon x1 5174 | -7/Factory | Lost 10 parts (3n5u2w) 6140 | -7/Factory | Build established: Scavenger-Gunner 6669 | -7/Factory | Core integrity fell below 50% 6694 | -7/Factory | Core integrity fell below 20% 6719 | -7/Factory | Lost 8 parts (1p4n3w) 6786 | -7/Factory | Garrison activated, responded to threat 6930 | -7/Factory | Destroyed by Y-54 Guardian with Gatling Laser Last Messages --------------- 06896_ Carbon-fiber Leg damaged (-29). 06905_ ALERT: Rogue bot located, Programmers report to Factory Zone 1L. 06907_ Med. Storage Unit destroyed. 06911_ Kinecellerator destroyed. 06913_ Broken Gatling Laser destroyed. 06914_ Arm. Treads destroyed. 06915_ Slammed into S-27 Virus. 06917_ Crushed S-27 Virus. 06917_ S-27 Virus destroyed. 06918_ Acquired 28 matter. 06920_ Slammed into G-47 Trooper. 06921_ Carbon-fiber Leg destroyed. 06922_ Slammed into Y-54 Guardian. 06925_ Slammed into G-47 Trooper. 06927_ K-01 Serf collects debris. 06927_ Slammed into G-47 Trooper. 06927_ Arm. Treads destroyed. 06930_ System corrupted: Energy discharge (-89). 06930_ Rnf. Deuterium Engine destroyed. Map ----- +----------------------------------------------------+ | # ## """"" #??????????????????? | | # ## """"" #??? """???????????? | | ################## """ # """ "?????????? | | #?????# # ?????????? | | #?????# """"" # ????????? | | #?????# """"" # ????????? | | #?????# ??? # ?????????? | | #?????# ???? # ???????????? | | #?????###???##" # ##?????????????? | | #???????????#" ##????????????? | | #????????????# % # #????????????? | | #???????????## ! #????????????? | | #???????????# [ #?????????????? | | #???????????## # #######???????? | | ############# # ??????? | | ############ # / # ##### #???????? | | ???????????# #### # #?????????????? | | ######?????#* #?# | ! # #?????????????? | | #?????# #?######+### # #?????????????? | | #?????# = #######* !# # #?????????????? | | #?????# / % *# ##?#?????????????? | | #?????# ####### =###? #?????????????? | | #?????# #????### ##### ###???????????? | | #?????# #??????# ### ########????? | | ##########+############%### ?? | | """" %!@ =k k ?? | | ""R"" =###### ?? | | "" "" Y g#????# #######+????? | | #????###+###???????????? | | #??????????????????????? | | ### T## ######+###??????????????????????? | | ##### "" "" #???????????????????????????????? | | ""#???# """"" #???????????????????????????????? | | Y"#???# """ #???????????????????????????????? | | ""#???# #???????????????????????????????? | | #???# #???????????????????????????????? | | #???# ######???????????????????????????????? | | #???# #????????????????????????????????????? | | ####### #????????????????????????????????????? | | #????????????????????????????????????? | | ######????????? "????????????????????? | | +???????? ?????????????????????? | | "" """ ######?????? ???????????????????????? | | "" """ ###########+########?????????????????? | | "" """ % % ^!!! ???????????????? | | "" %% ^!!! ???????????????? | | "" """ "" !!! ???????????????? | | "" """ F" ???????????????? | | "" """ "" ????????????????? | | = """" ????????????????? | +----------------------------------------------------+ Best States ------------- Heat Dissipation 34 Energy Generation 16 Energy Capacity 290 Matter Stores 382 Matter Capacity 400 Sight Range 16 Robot Scan Range 14 Terrain Scan Range 16 Terrain Scan Density 10 Additional Mass Support 9 Armor Coverage 825 Resistance: KI 30 Core Shielding 20 Propulsion Shielding 33 Evasion (%) 50 Core Analysis 6 Recoil Reduction 3 Kinecelleration 30 Item Schematics ----------------- None Robot Schematics ------------------ None Fabricated ------------ Nothing Alien Tech Used ----------------- None Achievements -------------- It Was An Accident, I Swear Challenges ------------ None Game ------ Seed MetafieldTeleporterThruster Manual? 0 Play Time 01:16:54 Cumulative 27.6 hours Start 2025.03.09 @ 15:20:34 End 2025.03.09 @ 16:36:10 Sessions 1 Manual Loads 0 Difficulty Rogue Special Mode None Game No. 16 Rogue 16 Adventurer 0 Explorer 0 Win Type - Total 0 Types 0/0/0/0/0/0/0/0/0 Lore% 15 Gallery% 27 Achievement% 23 Wizard Run 0 Options --------- Layout 2 ASCII 0 Keyboard 0 Movement Arrows Keybinds 0 Fullscreen 1 Font 24/Smallcaps Map View 50x44 Zoom Use 0% Tactical HUD 1 Map Filters NONE Filters NONE Steam 1 RUN: 169130be-50c7-4513-971a-fd206018f71c